bitfinex-derivatives/quotes_BTCF0:USTF0_20251230
["timestamp","ask_amount","ask_price","bid_price","bid_amount"]
[1767104632314,0.15352,88262.0,88235.0,0.0001134]
[1767104632499,0.00016995,88263.0,88252.0,0.0113455]
[1767104632702,0.00016995,88263.0,88248.0,0.011346]
[1767104633004,0.00016995,88263.0,88240.0,0.09644]
[1767104633211,0.02372332,88262.0,88248.0,0.0113461]
[1767104633397,0.00016995,88263.0,88248.0,0.0113461]
[1767104633599,0.02372471,88262.0,88248.0,0.0113461]
[1767104633816,0.00016995,88263.0,88248.0,0.0113461]
[1767104634002,0.02372471,88262.0,88240.0,0.09644]
[1767104634204,0.00016995,88263.0,88247.0,0.0113462]
[1767104634508,0.0237247,88262.0,88247.0,0.0113462]
[1767104634710,0.00016995,88263.0,88247.0,0.0113462]
[1767104634915,0.02372596,88262.0,88247.0,0.0113462]
[1767104635107,0.00016995,88263.0,88247.0,0.0113462]
[1767104635309,0.02372596,88262.0,88247.0,0.0113462]
[1767104635615,5e-08,88263.0,88255.0,0.0113452]
[1767104635812,0.09644,88280.0,88253.0,0.15356]
[1767104636010,0.0113421,88280.0,88254.0,0.09644]
[1767104636313,0.0113421,88280.0,88261.0,0.0113444]
[1767104637005,0.00016995,88279.0,88262.0,0.00016995]
[1767104637203,0.0113424,88278.0,88262.0,0.00016995]
[1767104637615,0.0113429,88274.0,88262.0,0.00016995]
[1767104637916,0.0113432,88272.0,88262.0,0.00016995]
[1767104638113,0.0113425,88277.0,88246.0,0.0113464]
[1767104638315,0.0113443,88263.0,88238.0,0.06091502]
[1767104638518,0.0113439,88266.0,88246.0,0.0113463]
[1767104638710,0.15352,88269.0,88250.0,0.0113458]
[1767104639118,0.00016995,88268.0,88251.0,0.0001134]
[1767104639316,0.00016995,88268.0,88252.0,0.0113456]
[1767104640713,0.0113442,88264.0,88251.0,0.0001134]
[1767104640915,0.0113447,88260.0,88227.0,0.0113489]
[1767104641110,0.011345,88258.0,88241.0,0.068467]
[1767104641306,0.011345,88258.0,88242.0,0.0964]
[1767104641706,0.011345,88258.0,88241.0,0.011347]
[1767104641913,0.00016995,88268.0,88238.0,0.0964]
[1767104642224,0.02372675,88267.0,88240.0,0.0113471]
[1767104642419,0.0113446,88261.0,88242.0,0.0113469]
[1767104643314,0.0113451,88257.0,88241.0,0.011347]
[1767104643713,0.0113447,88260.0,88241.0,0.011347]
[1767104644718,0.00016995,88268.0,88258.0,0.0113449]
[1767104644921,0.11317184,88296.0,88260.0,0.0113445]
[1767104644922,0.0964,88276.0,88260.0,0.0113445]
[1767104645117,0.09279953,88296.0,88263.0,0.0113442]
[1767104645118,0.0113417,88283.0,88263.0,0.0113442]
[1767104645324,0.011342,88281.0,88263.0,0.0113442]
[1767104645515,0.0113423,88279.0,88259.0,0.0113446]
[1767104645722,0.02384729,88278.0,88261.0,0.0113444]
[1767104645924,0.0113425,88277.0,88261.0,0.00016995]
[1767104646523,0.0113428,88275.0,88261.0,0.00016995]
[1767104646719,0.00016995,88278.0,88261.0,0.00016995]
[1767104647825,0.0113429,88274.0,88261.0,0.00016995]
[1767104648026,0.0113425,88277.0,88261.0,0.00016995]
[1767104648424,0.00016995,88278.0,88261.0,0.00016995]
[1767104648425,0.01151235,88278.0,88261.0,0.00016995]
[1767104649631,0.00016995,88278.0,88261.0,0.01151435]
[1767104649939,0.00016995,88278.0,88261.0,0.00016995]
[1767104650132,0.00016995,88278.0,88261.0,0.01151445]
[1767104650333,0.00016995,88278.0,88261.0,0.00016995]
[1767104650529,0.08145953,88304.0,88268.0,0.16978337]
[1767104650733,0.24108,88321.0,88287.0,0.011341]
[1767104650734,0.02384129,88303.0,88287.0,0.011341]
[1767104650944,0.02384129,88302.0,88287.0,0.011341]
[1767104651235,0.0113384,88309.0,88289.0,0.0113408]
[1767104651540,0.011339,88305.0,88290.0,0.00016995]
[1767104652134,0.00016995,88308.0,88290.0,0.00016995]
[1767104652439,0.0113386,88307.0,88290.0,0.00016995]
[1767104653240,0.00016995,88308.0,88290.0,0.00016995]
[1767104654337,0.0113391,88304.0,88290.0,0.00016995]
[1767104655235,0.00016995,88308.0,88290.0,0.00016995]
[1767104655436,0.00016995,88308.0,88293.0,0.0113403]
[1767104655842,0.00016995,88308.0,88290.0,0.00016995]
[1767104656040,0.00016995,88308.0,88294.0,0.0113402]
[1767104656444,0.00016995,88308.0,88290.0,0.00016995]
[1767104656836,0.00016995,88308.0,88299.0,0.0113396]
[1767104657144,0.05708,88313.0,88295.0,0.01134]
[1767104657741,0.011338,88312.0,88293.0,0.0113403]
[1767104658147,0.00016995,88311.0,88293.0,0.0113403]
[1767104659152,0.0113382,88310.0,88292.0,0.0964]
[1767104659541,0.00016995,88311.0,88293.0,0.0113404]
[1767104660154,0.00016995,88311.0,88293.0,0.0964]
[1767104660341,0.0113382,88310.0,88293.0,0.0964]
[1767104660542,0.05,88308.0,88293.0,0.0964]
[1767104660846,0.05,88308.0,88292.0,0.15348]
[1767104661845,0.05,88308.0,88290.0,0.00016995]
[1767104662039,0.0113397,88299.0,88280.0,0.011342]
[1767104662443,0.0684192,88302.0,88282.0,0.0113417]
[1767104662755,0.0684192,88302.0,88276.0,0.15348]
[1767104662756,0.05708,88302.0,88276.0,0.15348]
[1767104662944,0.05708,88302.0,88283.0,0.0113416]
[1767104663146,0.0113394,88301.0,88280.0,0.00016995]
[1767104663446,0.0113394,88301.0,88280.0,0.01151195]
[1767104664342,0.0113394,88301.0,88281.0,0.15348]
[1767104665145,0.0113394,88301.0,88283.0,0.0113417]
[1767104665647,0.0113394,88301.0,88281.0,0.1648219]
[1767104665846,0.0113394,88301.0,88283.0,0.0113416]
[1767104667340,0.05708,88302.0,88282.0,0.15344]
[1767104667849,0.0113401,88295.0,88282.0,0.15344]
[1767104668059,0.05708,88302.0,88280.0,0.00016995]
[1767104668354,0.0684192,88302.0,88283.0,0.05704]
[1767104668854,0.0684192,88302.0,88285.0,0.0113413]
[1767104669053,0.05708,88302.0,88280.0,0.00016995]
[1767104669355,0.0113397,88299.0,88281.0,0.1647418]
[1767104669556,0.0684192,88302.0,88281.0,0.1647418]
[1767104670056,0.0684192,88302.0,88281.0,0.0113418]
[1767104670251,0.0684192,88302.0,88280.0,0.00016995]
[1767104670252,0.0684192,88302.0,88283.0,0.0113416]
[1767104670451,0.0684192,88302.0,88285.0,0.0113414]
[1767104670755,0.05708,88302.0,88285.0,0.0113414]
[1767104670957,0.05708,88302.0,88288.0,0.0113409]
[1767104671153,0.05708,88302.0,88280.0,0.00016995]
[1767104671154,0.0113397,88299.0,88280.0,0.01151195]
[1767104671456,0.0113398,88298.0,88281.0,0.0113419]
[1767104671652,0.0113394,88301.0,88281.0,0.0113419]
[1767104672253,0.05708,88302.0,88280.0,0.00016995]
[1767104672554,0.0113405,88292.0,88267.0,0.05704]
[1767104672756,0.1534,88291.0,88266.0,0.05704]
[1767104672955,0.1534,88290.0,88266.0,0.05704]
[1767104673150,0.0113411,88288.0,88267.0,0.0113437]
[1767104673351,0.0113414,88286.0,88267.0,0.0113437]
[1767104673552,0.00016995,88286.0,88269.0,0.00016995]
[1767104673752,0.00016995,88286.0,88270.0,0.0113433]
[1767104673954,0.00016995,88286.0,88269.0,0.00016995]
[1767104674355,0.02380837,88285.0,88269.0,0.00016995]
[1767104674653,0.02380837,88284.0,88269.0,0.01151335]
[1767104674857,0.00016995,88286.0,88273.0,0.0113428]
[1767104675053,0.06222314,88314.0,88284.0,0.0113415]
[1767104675256,0.06222314,88314.0,88272.0,0.05704]
[1767104675257,0.0113389,88305.0,88286.0,0.0113412]
[1767104675559,0.1534,88307.0,88292.0,0.0113405]
[1767104675757,0.1534,88307.0,88275.0,0.0113427]
[1767104675951,0.1534,88307.0,88294.0,0.0113401]
[1767104676661,0.1534,88307.0,88292.0,0.00016995]
[1767104677647,0.1534,88307.0,88272.0,0.05704]
[1767104678050,0.1534,88307.0,88273.0,0.0964]
[1767104678257,0.0113396,88300.0,88278.0,0.0113422]
[1767104678552,0.0113396,88300.0,88280.0,0.01151185]
[1767104678553,0.05704,88299.0,88280.0,0.01151185]
[1767104678852,0.05704,88299.0,88282.0,0.0113417]
[1767104679060,0.05704,88299.0,88280.0,0.00016995]
[1767104679449,0.05704,88299.0,88271.0,0.0113431]
[1767104679655,0.0113403,88294.0,88275.0,0.0113426]
[1767104679856,0.1077405,88293.0,88272.0,0.011343]
[1767104680252,0.0964,88293.0,88264.0,0.0964]
[1767104680453,0.00016995,88287.0,88264.0,0.0964]
[1767104680653,0.05720995,88287.0,88264.0,0.0964]
[1767104681258,0.05720995,88287.0,88274.0,0.0113427]
[1767104681452,0.05720995,88287.0,88271.0,0.0113432]
[1767104681651,0.05720995,88287.0,88264.0,0.0964]
[1767104681652,0.05720995,88287.0,88268.0,0.0113436]
[1767104682654,0.0113421,88280.0,88261.0,0.05708]
[1767104682856,0.0113424,88278.0,88262.0,0.0964]
[1767104683063,0.0113424,88278.0,88257.0,0.011345]
[1767104683362,0.00016995,88276.0,88259.0,0.05708]
[1767104683660,0.00016995,88276.0,88261.0,0.0113444]
[1767104684451,0.00016995,88276.0,88263.0,0.0113441]
[1767104685652,0.00016995,88276.0,88259.0,0.05708]
[1767104685958,0.00016995,88276.0,88264.0,0.011344]
[1767104687360,0.00016995,88276.0,88263.0,0.0113442]
[1767104688851,0.00016995,88276.0,88260.0,0.0113446]
[1767104689059,0.00016995,88276.0,88255.0,0.0964]
[1767104689365,0.00016995,88276.0,88260.0,0.0113445]
[1767104690359,0.00016995,88276.0,88257.0,0.011345]
[1767104691162,0.0113428,88275.0,88256.0,0.0964]
[1767104691767,0.00016995,88276.0,88260.0,0.0113446]
[1767104696868,0.0113431,88272.0,88256.0,0.0964]
[1767104698067,0.0113428,88275.0,88256.0,0.0964]
[1767104698262,0.0113428,88275.0,88257.0,0.0113449]
[1767104698467,0.00016995,88276.0,88259.0,0.0113447]
[1767104699269,0.00016995,88276.0,88261.0,0.0113444]
[1767104699471,5e-08,88276.0,88266.0,0.0113438]
[1767104699671,5e-08,88276.0,88257.0,0.0113449]
[1767104699871,5e-08,88276.0,88256.0,0.0964]
[1767104700376,0.0113446,88261.0,88243.0,0.0113467]
[1767104700675,0.0113463,88247.0,88230.0,0.06091502]
[1767104700977,0.0113448,88259.0,88231.0,0.15348]
[1767104701166,0.0684246,88261.0,88241.0,0.0113471]
[1767104701367,0.0113448,88259.0,88241.0,0.0113471]
[1767104701673,0.00016995,88259.0,88243.0,0.0113468]
[1767104702277,0.00016995,88259.0,88232.0,0.0964]
[1767104702480,0.0113455,88254.0,88234.0,0.0113479]
[1767104702874,0.0964,88256.0,88231.0,0.15348]
[1767104703768,0.02371766,88255.0,88223.0,0.00010633]
[1767104703975,0.02371766,88254.0,88224.0,0.15348]
[1767104704182,0.0113466,88245.0,88225.0,0.164829]
[1767104704377,0.0113466,88245.0,88225.0,0.15348]
[1767104704582,0.0113466,88245.0,88223.0,0.00010633]
[1767104704783,0.0113469,88242.0,88224.0,0.15348]
[1767104705196,0.0113466,88245.0,88224.0,0.15348]
[1767104705394,0.0964,88246.0,88223.0,0.00010633]
[1767104705894,0.0964,88246.0,88218.0,0.01118]
[1767104706192,0.0964,88246.0,88218.0,1e-07]
[1767104706193,0.0113497,88221.0,88218.0,1e-07]
[1767104706390,0.01135,88218.0,88197.0,0.15348]
[1767104706593,0.01135,88218.0,88175.0,0.08121468]
[1767104706594,0.00017006,88216.0,88195.0,0.0113529]
[1767104706792,0.00017006,88216.0,88199.0,0.0113524]
[1767104706984,0.0964,88221.0,88195.0,0.0964]
[1767104708100,0.00017006,88217.0,88199.0,0.00017006]
[1767104708289,0.00017006,88217.0,88206.0,0.0113515]
[1767104708890,0.00017006,88217.0,88199.0,0.00017006]
[1767104708891,0.09644,88228.0,88213.0,0.0113507]
[1767104709091,0.05708,88229.0,88213.0,0.0113507]
[1767104709402,0.05708,88229.0,88209.0,0.0113511]
[1767104709899,0.0113489,88227.0,88210.0,0.00017006]
[1767104710100,0.0113497,88221.0,88210.0,0.00017006]
[1767104710399,0.0113497,88221.0,88195.0,0.0226729]
[1767104710585,0.0113501,88218.0,88197.0,0.0113527]
[1767104711400,0.0113501,88218.0,88199.0,0.00017006]
[1767104712202,0.0113495,88223.0,88200.0,0.0113523]
[1767104712700,0.00017006,88228.0,88199.0,0.00017006]
[1767104713206,0.011351,88211.0,88199.0,0.00017006]
[1767104714606,0.0113508,88212.0,88199.0,0.00017006]
[1767104715098,0.09644,88217.0,88199.0,0.00017006]
[1767104715693,0.0113507,88213.0,88191.0,0.0113535]
[1767104715888,0.1077903,88217.0,88191.0,0.0113535]
[1767104716107,0.0113505,88214.0,88191.0,0.0113535]
[1767104716597,0.09644,88217.0,88187.0,0.09644]
[1767104716807,0.0113485,88230.0,88187.0,0.09644]
[1767104716808,0.24116,88249.0,88210.0,0.011351]
[1767104717101,0.0113483,88232.0,88203.0,0.09644]
[1767104717301,0.15352,88231.0,88210.0,0.0113509]
[1767104717602,0.0113485,88230.0,88210.0,0.0113509]
[1767104717801,0.01151876,88229.0,88211.0,0.00017006]
[1767104718102,0.011349,88226.0,88211.0,0.00017006]
[1767104718696,0.01151876,88229.0,88211.0,0.00017006]
[1767104719002,0.00017006,88229.0,88211.0,0.00017006]
[1767104719204,0.00017006,88229.0,88211.0,0.01152096]
[1767104719790,0.00017006,88229.0,88211.0,0.00017006]
[1767104719990,0.09644,88241.0,88211.0,0.00017006]
[1767104720195,0.09644,88241.0,88212.0,0.11335298]
[1767104720196,0.05708,88241.0,88212.0,0.11335298]
[1767104720402,0.05708,88241.0,88222.0,0.0113495]
[1767104720897,0.0113467,88244.0,88222.0,0.0113495]
[1767104720898,0.1648667,88244.0,88222.0,0.0113495]
[1767104721105,0.00017006,88240.0,88222.0,0.0113495]
[1767104721298,0.00017006,88240.0,88225.0,0.0113491]
[1767104722603,0.00017006,88240.0,88228.0,0.0113487]
[1767104722810,0.09644,88252.0,88232.0,0.0113482]
[1767104723702,0.0113458,88251.0,88231.0,0.0113483]
[1767104724007,0.0113458,88251.0,88226.0,0.05708]
[1767104724008,0.00017006,88250.0,88232.0,0.00017006]
[1767104725004,0.0113465,88246.0,88232.0,0.00017006]
[1767104726406,0.0113464,88247.0,88226.0,0.09644]
[1767104726712,0.0113464,88247.0,88227.0,0.0113488]
[1767104727013,0.0113463,88248.0,88227.0,0.0113488]
[1767104727417,0.0113463,88248.0,88229.0,0.01151856]
[1767104727602,0.00017006,88250.0,88229.0,0.01151856]
[1767104728411,0.00017006,88250.0,88231.0,0.0113482]
[1767104728912,0.00017006,88250.0,88233.0,0.011348]
[1767104729306,0.02372089,88249.0,88233.0,0.011348]
[1767104729508,0.0113461,88249.0,88229.0,0.00017006]
[1767104730012,0.01151606,88250.0,88231.0,0.0113482]
[1767104730214,0.02372045,88249.0,88231.0,0.0113482]
[1767104730513,0.02372045,88248.0,88231.0,0.0113482]
[1767104730807,0.00017006,88250.0,88233.0,0.011348]
[1767104731011,0.00017006,88250.0,88239.0,0.0113472]
[1767104731515,0.00017006,88250.0,88235.0,0.0113477]
[1767104731715,0.011346,88249.0,88229.0,0.00017006]
[1767104732317,0.00017006,88250.0,88229.0,0.00017006]
[1767104732512,0.00017006,88250.0,88230.0,0.15352]
[1767104732513,0.0113466,88245.0,88230.0,0.15352]
[1767104732714,0.00017006,88250.0,88229.0,0.00017006]
[1767104732914,0.05708,88249.0,88229.0,0.00017006]
[1767104733320,0.0113469,88243.0,88229.0,0.00017006]
[1767104736219,0.0113472,88240.0,88229.0,0.00017006]
[1767104736919,0.05708,88249.0,88186.0,0.05578138]
[1767104736920,0.0113475,88238.0,88221.0,0.05708]
[1767104737120,0.0113475,88238.0,88222.0,0.15352]
[1767104737320,0.0113475,88238.0,88223.0,0.05708]
[1767104737717,0.0113471,88241.0,88223.0,0.05708]
[1767104737921,0.01151716,88241.0,88223.0,0.05725006]
[1767104738824,0.0113479,88235.0,88223.0,0.05725006]
[1767104739021,0.0113479,88235.0,88224.0,0.15352]
[1767104739414,0.0113475,88238.0,88224.0,0.15352]
[1767104739726,0.00017006,88241.0,88224.0,0.15352]
[1767104739926,0.0113479,88235.0,88224.0,0.15352]
[1767104741524,0.0113479,88235.0,88224.0,0.05708]
[1767104742327,0.0113475,88238.0,88224.0,0.05708]
[1767104743131,0.0113478,88236.0,88223.0,0.00017006]
[1767104743324,0.0113478,88236.0,88223.0,0.05725006]
[1767104743525,0.011348,88234.0,88223.0,0.05725006]
[1767104743727,0.16990279,88240.0,88223.0,0.05725006]
[1767104743929,0.16990279,88240.0,88224.0,0.01132]
[1767104744326,0.0113479,88235.0,88224.0,0.01132]
[1767104744832,0.0113475,88238.0,88224.0,0.01132]
[1767104745027,0.00017006,88241.0,88227.0,0.0113488]
[1767104745229,0.00017006,88241.0,88230.0,0.16990279]
[1767104745729,0.00017006,88241.0,88226.0,0.011349]
[1767104745929,0.00017006,88241.0,88224.0,0.01132]
[1767104746129,0.00017006,88241.0,88230.0,0.16990279]
[1767104746344,0.00017006,88241.0,88224.0,0.01132]
[1767104746715,0.00017006,88241.0,88232.0,0.0113481]
[1767104746918,0.09644,88244.0,88232.0,0.0113481]
[1767104747127,0.02375565,88243.0,88232.0,0.0113481]
[1767104747328,0.09644,88244.0,88234.0,0.0113479]
[1767104747530,0.0237632,88243.0,88234.0,0.0113479]
[1767104747835,0.09644,88244.0,88234.0,0.0113479]
[1767104748130,0.0237632,88243.0,88230.0,0.18125119]
[1767104748330,0.09644,88244.0,88230.0,0.0113484]
[1767104748529,0.16990279,88240.0,88224.0,0.01132]
[1767104748825,0.16990279,88234.0,88213.0,0.05708]
[1767104749026,0.05708,88234.0,88213.0,0.05708]
[1767104749233,0.16990279,88230.0,88213.0,0.05708]
[1767104749526,0.16990279,88230.0,88217.0,0.0113501]
[1767104749730,0.16990279,88230.0,88215.0,0.00017006]
[1767104750531,0.05708,88234.0,88218.0,0.0113499]
[1767104750733,0.02378616,88233.0,88218.0,0.0113499]
[1767104750923,0.05708,88234.0,88218.0,0.0113499]
[1767104751230,0.02378614,88233.0,88218.0,0.0113499]
[1767104751433,0.068428,88234.0,88215.0,0.00017006]
[1767104751727,0.12022427,88233.0,88215.0,0.00017006]
[1767104752027,0.02378427,88232.0,88215.0,0.00017006]
[1767104752223,0.0113488,88228.0,88215.0,0.00017006]
[1767104752823,0.0113484,88231.0,88215.0,0.00017006]
[1767104753134,0.02378082,88230.0,88215.0,0.00017006]
[1767104753424,0.02377673,88229.0,88215.0,0.00017006]
[1767104753732,0.09644,88233.0,88216.0,0.0113502]
[1767104753928,0.08085627,88232.0,88215.0,0.00017006]
[1767104754231,0.05708,88232.0,88215.0,0.05725006]
[1767104754621,0.05708,88232.0,88222.0,0.0113495]
[1767104755429,0.05708,88232.0,88219.0,0.0113498]
[1767104755731,0.05708,88232.0,88221.0,0.0113496]
[1767104756029,0.15352,88237.0,88215.0,0.05725006]
[1767104756231,0.02376946,88236.0,88215.0,0.05725006]
[1767104756532,0.05708,88241.0,88215.0,0.05725006]
[1767104757032,0.0684271,88241.0,88225.0,0.011349]
[1767104757232,0.05708,88241.0,88225.0,0.011349]
[1767104757528,0.0113472,88240.0,88225.0,0.011349]
[1767104757735,0.0113472,88240.0,88222.0,0.0113494]
[1767104758034,0.05708,88241.0,88220.0,0.09644]
[1767104758035,0.0113475,88238.0,88220.0,0.09644]
[1767104758235,0.0113475,88238.0,88221.0,0.0113496]
[1767104758624,0.0684271,88241.0,88221.0,0.0113496]
[1767104758824,0.0684271,88241.0,88220.0,0.09644]
[1767104758825,0.0113475,88238.0,88220.0,0.09644]
[1767104759032,0.0113478,88236.0,88220.0,0.09644]
[1767104759334,0.0113473,88239.0,88220.0,0.09644]
[1767104760438,0.05708,88241.0,88220.0,0.09644]
[1767104760439,0.011348,88235.0,88220.0,0.09644]
[1767104760830,0.0113475,88238.0,88220.0,0.09644]
[1767104761035,0.0684271,88241.0,88221.0,0.0113495]
[1767104761235,0.0113476,88238.0,88220.0,0.1077897]
[1767104761430,0.05708,88241.0,88215.0,0.00017006]
[1767104761635,0.0113481,88234.0,88216.0,0.15352]
[1767104761835,0.0113481,88234.0,88216.0,0.1648702]
[1767104762035,0.0113483,88232.0,88215.0,0.00017006]
[1767104762337,0.0113497,88221.0,88215.0,6e-08]
[1767104762641,0.0113497,88221.0,88206.0,0.05708]
[1767104762642,0.49999994,88215.0,88206.0,0.05708]
[1767104762835,0.49999994,88215.0,88206.0,0.0684315]
[1767104763042,0.49999994,88215.0,88208.0,0.0113512]
[1767104764642,0.49999994,88215.0,88208.0,0.0684312]
[1767104764842,0.49999994,88215.0,88208.0,0.05708]
[1767104764843,4e-08,88215.0,88208.0,0.05708]
[1767104765030,0.011345,88257.0,88224.0,0.0113491]
[1767104765235,0.16993789,88250.0,88222.0,0.05708]
[1767104765541,0.0113481,88234.0,88216.0,0.05708]
[1767104765843,0.0113483,88232.0,88216.0,0.05708]
[1767104768346,0.00017006,88233.0,88215.0,0.00017006]
[1767104768539,0.0113496,88222.0,88209.0,0.05708]
[1767104768742,0.0113491,88226.0,88209.0,0.05708]
[1767104769541,0.0113491,88226.0,88206.0,0.0113515]
[1767104769741,0.0113491,88226.0,88208.0,0.0113512]
[1767104769944,0.05708,88227.0,88208.0,0.0113512]
[1767104770132,0.05708,88227.0,88205.0,0.05708]
[1767104770338,0.05708,88227.0,88207.0,0.0113514]
[1767104770532,0.05708,88227.0,88205.0,0.05708]
[1767104770740,0.05708,88227.0,88213.0,0.0113506]
[1767104771040,0.00017006,88233.0,88221.0,0.0113496]
[1767104771243,0.00017006,88233.0,88220.0,0.0113497]
[1767104771846,0.00017006,88233.0,88217.0,0.09644]
[1767104772643,0.00017006,88233.0,88217.0,0.1077901]
[1767104772843,0.00017006,88233.0,88220.0,0.0113497]
[1767104775440,0.00017006,88233.0,88217.0,0.09644]
[1767104775631,0.03523808,88232.0,88213.0,0.0113506]
[1767104775836,0.0238894,88231.0,88213.0,0.0113506]
[1767104776040,0.0113483,88232.0,88214.0,0.15352]
[1767104776244,0.02388971,88231.0,88215.0,0.09644]
[1767104776432,0.16995306,88230.0,88215.0,0.09644]
[1767104777038,0.02389122,88229.0,88213.0,0.0113506]
[1767104777233,0.00017006,88233.0,88211.0,0.05708]
[1767104777234,0.02389122,88228.0,88211.0,0.05708]
[1767104777438,0.18130166,88230.0,88211.0,0.05708]
[1767104777439,0.02389122,88227.0,88211.0,0.05708]
[1767104777638,0.02389122,88226.0,88211.0,0.05708]
[1767104777839,0.02389122,88225.0,88211.0,0.05708]
[1767104778040,0.32347306,88230.0,88211.0,0.05708]
[1767104778349,0.02389629,88229.0,88211.0,0.05708]
[1767104778548,0.02389629,88228.0,88211.0,0.05708]
[1767104778848,0.02389629,88227.0,88211.0,0.05708]
[1767104779143,0.02389629,88226.0,88211.0,0.05708]
[1767104779347,0.02389629,88225.0,88211.0,0.05708]
[1767104779548,0.15352,88230.0,88212.0,0.0113508]
[1767104779748,0.0113494,88223.0,88211.0,0.05708]
[1767104779946,0.02390089,88222.0,88196.0,0.06091502]
[1767104780250,0.02390089,88222.0,88188.0,0.08121468]
[1767104780251,0.01152016,88218.0,88200.0,0.0113523]
[1767104780440,0.02390089,88217.0,88202.0,0.0113521]
[1767104780640,0.02390089,88216.0,88202.0,0.0113521]
[1767104780846,0.00017006,88218.0,88201.0,0.09644]
[1767104781148,0.02390742,88217.0,88201.0,0.09644]
[1767104781448,0.00017006,88218.0,88204.0,0.0113518]
[1767104781647,0.023903,88217.0,88204.0,0.0113518]
[1767104781840,0.023903,88216.0,88206.0,0.0113515]
[1767104782149,0.023903,88216.0,88201.0,0.09644]
[1767104782150,0.00017006,88218.0,88201.0,0.09644]
[1767104782351,0.02389806,88217.0,88189.0,0.06091502]
[1767104782643,0.02389806,88216.0,88188.0,0.06091502]
[1767104782848,0.0113514,88208.0,88189.0,0.15352]
[1767104783050,0.011351,88211.0,88190.0,0.0113535]
[1767104783254,0.0113505,88215.0,88192.0,0.0113533]
[1767104783550,0.02389303,88214.0,88194.0,0.011353]
[1767104783751,0.02389303,88213.0,88194.0,0.011353]
[1767104783955,0.02389303,88212.0,88194.0,0.011353]
[1767104784248,0.0113505,88215.0,88194.0,0.011353]
[1767104784449,0.02388837,88214.0,88194.0,0.011353]
[1767104784646,0.02388837,88213.0,88194.0,0.011353]
[1767104784850,0.02388837,88212.0,88194.0,0.011353]
[1767104785040,0.02388837,88211.0,88194.0,0.011353]
[1767104785240,0.0113506,88214.0,88194.0,0.011353]
[1767104785440,0.02388329,88213.0,88194.0,0.011353]
[1767104786046,0.02388329,88213.0,88192.0,0.05708]
[1767104786047,0.0113509,88211.0,88192.0,0.05708]
[1767104786246,0.02388329,88210.0,88192.0,0.05708]
[1767104786448,0.02388329,88209.0,88193.0,0.0113531]
[1767104786642,0.00017006,88218.0,88193.0,0.0113531]
[1767104786841,0.02387683,88217.0,88192.0,0.05708]
[1767104787151,0.02387683,88216.0,88192.0,0.05708]
[1767104787446,0.02387683,88215.0,88193.0,0.0113532]
[1767104787752,0.02387683,88214.0,88193.0,0.0113532]
[1767104787954,0.00017006,88218.0,88192.0,0.05708]
[1767104787955,0.02387683,88213.0,88192.0,0.05708]
[1767104788245,0.02387683,88212.0,88196.0,0.0113528]
[1767104788443,0.0113505,88215.0,88192.0,0.05708]
[1767104788643,0.02386893,88214.0,88192.0,0.05708]
[1767104788844,0.02386893,88213.0,88189.0,0.0113536]
[1767104789048,0.02386893,88212.0,88190.0,0.15356]
[1767104789247,0.00017006,88218.0,88189.0,0.0113536]
[1767104789444,0.02386688,88217.0,88189.0,0.0113536]
[1767104789650,0.02386688,88216.0,88189.0,0.0113536]
[1767104789946,0.0113513,88208.0,88188.0,0.05708]
[1767104790149,0.0113513,88208.0,88188.0,0.0684338]
[1767104791245,0.00017006,88218.0,88188.0,0.05708]
[1767104791444,0.02386299,88217.0,88188.0,0.05708]
[1767104791643,0.02386299,88216.0,88188.0,0.05708]
[1767104791845,0.02386299,88215.0,88188.0,0.05708]
[1767104792051,0.02386299,88214.0,88188.0,0.05708]
[1767104792254,0.00017006,88218.0,88195.0,0.011353]
[1767104792447,0.0113507,88214.0,88195.0,0.011353]
[1767104792644,0.0113504,88216.0,88188.0,0.05708]
[1767104792850,0.00017006,88218.0,88189.0,0.15356]
[1767104792851,0.0113518,88205.0,88189.0,0.15356]
[1767104793655,0.0113517,88205.0,88189.0,0.15356]
[1767104793853,0.0113519,88204.0,88189.0,0.15356]
[1767104794449,0.15356,88208.0,88177.0,0.0113553]
[1767104794641,0.011353,88195.0,88178.0,0.09648]
[1767104794946,0.011353,88195.0,88179.0,0.05708]
[1767104795248,0.0113526,88198.0,88179.0,0.05708]
[1767104795441,0.011353,88196.0,88179.0,0.05708]
[1767104797254,0.011353,88196.0,88160.0,0.2412]
[1767104797255,0.09648,88198.0,88171.0,0.011356]
[1767104797454,0.09648,88198.0,88165.0,0.06091502]
[1767104797455,0.09648,88198.0,88176.0,0.05708]
[1767104797655,0.011354,88188.0,88176.0,0.05708]
[1767104797855,0.0113536,88191.0,88168.0,0.0113564]
[1767104798052,0.09648,88198.0,88169.0,0.05708]
[1767104798359,0.09648,88198.0,88170.0,0.0684361]
[1767104798658,0.09648,88198.0,88171.0,0.15356]
[1767104799056,0.0113528,88197.0,88172.0,0.05708]
[1767104799362,0.0113531,88195.0,88176.0,0.0113554]
[1767104799754,0.1078326,88198.0,88176.0,0.0113554]
[1767104800055,0.09648,88198.0,88178.0,0.0113551]
[1767104800260,0.09648,88198.0,88172.0,0.05708]
[1767104800564,0.0113529,88196.0,88173.0,0.0113558]
[1767104801261,0.05708,88195.0,88175.0,0.0113554]
[1767104801462,0.05708,88195.0,88174.0,0.0113556]
[1767104801764,0.05708,88195.0,88170.0,0.05708]
[1767104802061,0.05708,88195.0,88172.0,0.0113559]
[1767104802265,0.05708,88195.0,88170.0,0.05708]
[1767104802561,0.05708,88195.0,88175.0,0.0113554]
[1767104803860,0.0113537,88190.0,88169.0,0.0113562]
[1767104804165,0.0113537,88190.0,88170.0,0.05708]
[1767104804368,0.011354,88187.0,88170.0,0.05708]
[1767104805059,0.0113531,88194.0,88158.0,9.449e-05]
[1767104805258,0.0113546,88183.0,88162.0,0.0113571]
[1767104805659,0.0113546,88183.0,88164.0,0.011357]
[1767104805861,0.00017006,88185.0,88164.0,0.011357]
[1767104806066,0.01152446,88185.0,88164.0,0.011357]
[1767104806261,0.00017006,88185.0,88163.0,0.15356]
[1767104806463,0.09648,88204.0,88166.0,0.0113567]
[1767104806665,0.09648,88204.0,88187.0,0.0113539]
[1767104806865,0.09648,88204.0,88184.0,0.0113544]
[1767104807169,0.023872,88203.0,88159.0,0.06091502]
[1767104807373,0.0113528,88197.0,88173.0,0.0113557]
[1767104807570,0.00017006,88190.0,88172.0,0.00017006]
[1767104807871,0.00017006,88190.0,88174.0,0.0113557]
[1767104808871,0.00017006,88190.0,88176.0,0.0113553]
[1767104809263,0.09648,88204.0,88187.0,0.0113539]
[1767104809561,0.02389123,88203.0,88184.0,0.0113543]
[1767104809868,0.0113497,88221.0,88172.0,0.00017006]